bitfinex/quotes_BTCUSD_20250225
["timestamp","ask_amount","ask_price","bid_price","bid_amount"]
[1740459735810,0.54348594,92141.0,92140.0,7.486e-05]
[1740459736010,0.6409983,92141.0,92140.0,7.486e-05]
[1740459736213,0.6609983,92141.0,92140.0,7.486e-05]
[1740459737020,0.01454085,92128.0,92094.0,0.0489]
[1740459737199,0.16454085,92126.0,92102.0,0.00128082]
[1740459737415,0.01454085,92124.0,92102.0,0.00128082]
[1740459737582,0.16454085,92122.0,92102.0,0.00128082]
[1740459737810,0.01454085,92120.0,92102.0,0.00128082]
[1740459738016,0.03244509,92119.0,92102.0,0.00128082]
[1740459739668,0.03944509,92119.0,92102.0,0.00128082]
[1740459739868,0.03244509,92118.0,92102.0,0.00128082]
[1740459740118,0.03244509,92117.0,92102.0,0.00128082]
[1740459740511,0.03244509,92116.0,92102.0,0.00128082]
[1740459740714,0.03244509,92115.0,92102.0,0.00128082]
[1740459740941,0.03244509,92114.0,92102.0,0.00128082]
[1740459741214,0.03244509,92113.0,92102.0,0.00128082]
[1740459741446,0.03244509,92112.0,92102.0,0.00128082]
[1740459741654,0.03244509,92111.0,92102.0,0.00128082]
[1740459741788,0.03244509,92110.0,92102.0,0.00128082]
[1740459742129,0.03244509,92109.0,92102.0,0.00128082]
[1740459742332,0.007,92114.0,92102.0,0.00128082]
[1740459742513,0.03230318,92113.0,92102.0,0.00128082]
[1740459742868,0.007,92112.0,92102.0,0.00128082]
[1740459743065,0.03230318,92111.0,92102.0,0.00128082]
[1740459743867,0.03830318,92111.0,92102.0,0.00128082]
[1740459744035,0.006,92111.0,92102.0,0.00128082]
[1740459744255,0.03228944,92110.0,92102.0,0.00128082]
[1740459744427,0.006,92111.0,92102.0,0.00128082]
[1740459744884,0.0322827,92110.0,92102.0,0.00128082]
[1740459745084,0.013,92111.0,92102.0,0.00128082]
[1740459745300,0.0322827,92110.0,92102.0,0.00128082]
[1740459746248,0.0322827,92110.0,92103.0,0.0763]
[1740459747023,0.0382827,92110.0,92103.0,0.0763]
[1740459747219,0.0322827,92109.0,92103.0,0.0763]
[1740459747602,0.0322827,92110.0,92103.0,0.0763]
[1740459747964,0.0322827,92109.0,92103.0,0.0763]
[1740459748338,0.0322827,92109.0,92102.0,0.00128082]
[1740459748545,0.009,92109.0,92102.0,0.00128082]
[1740459748749,0.0322827,92108.0,92102.0,0.00128082]
[1740459750781,0.005,92108.0,92102.0,0.00128082]
[1740459750980,0.0322827,92107.0,92102.0,0.00128082]
[1740459752418,0.08656557,92104.0,92102.0,0.20128082]
[1740459752630,0.21358007,92103.0,92102.0,0.20128082]
[1740459752831,0.24254546,92103.0,92102.0,0.20128082]
[1740459753079,0.24254546,92103.0,92102.0,0.15256957]
[1740459753366,0.26927677,92103.0,92102.0,0.15256957]
[1740459753577,0.26927677,92103.0,92102.0,0.09922982]
[1740459753578,0.61577677,92103.0,92102.0,0.09922982]
[1740459753792,0.0964,92101.0,92060.0,0.0458]
[1740459753989,0.02,92080.0,92020.0,0.404]
[1740459754187,0.59168219,92080.0,92020.0,0.404]
[1740459754412,0.02,92065.0,92020.0,0.0816]
[1740459754637,0.08502219,92065.0,92020.0,0.0816]
[1740459754840,0.26398758,92065.0,92020.0,0.0816]
[1740459755049,0.36048289,92065.0,92020.0,0.0816]
[1740459755475,0.40335489,92065.0,92020.0,0.0816]
[1740459755685,0.39078571,92065.0,92020.0,0.0816]
[1740459755884,0.34182032,92065.0,92018.0,0.04657]
[1740459756092,0.16759082,92065.0,92048.0,0.0822]
[1740459756660,0.01759082,92065.0,92048.0,0.0822]
[1740459757101,0.05125212,92065.0,92018.0,0.00159104]
[1740459757344,0.05125212,92065.0,92038.0,0.0797]
[1740459757763,0.17077213,92065.0,92018.0,7e-05]
[1740459758011,0.15809321,92065.0,92018.0,7e-05]
[1740459758208,0.23226999,92065.0,92040.0,0.0797]
[1740459758437,0.18614891,92065.0,92040.0,0.0797]
[1740459758858,0.19314891,92065.0,92040.0,0.0797]
[1740459759190,0.14298891,92065.0,92044.0,0.0497]
[1740459759414,0.0946076,92065.0,92044.0,0.0497]
[1740459759616,0.1016076,92065.0,92044.0,0.0497]
[1740459759849,0.138321,92065.0,92040.0,0.0797]
[1740459760218,0.1859823,92065.0,92040.0,0.0797]
[1740459760363,0.1552689,92065.0,92040.0,0.0797]
[1740459760579,0.1282689,92065.0,92040.0,0.0797]
[1740459760949,0.1082689,92065.0,92040.0,0.0797]
[1740459761155,0.1012689,92065.0,92040.0,0.0797]
[1740459761391,0.1282689,92065.0,92040.0,0.0797]
[1740459761693,0.1352689,92065.0,92040.0,0.0797]
[1740459761901,0.1152689,92065.0,92040.0,0.0797]
[1740459762350,0.0816076,92065.0,92040.0,0.0797]
[1740459762560,0.01443082,92065.0,92040.0,0.0797]
[1740459762763,0.01443082,92065.0,92056.0,0.0468]
[1740459763196,0.00043082,92065.0,92056.0,0.0468]
[1740459763381,0.00743082,92065.0,92056.0,0.0468]
[1740459763595,0.01750064,92065.0,92056.0,0.0468]
[1740459763885,0.03515083,92065.0,92056.0,0.0468]
[1740459764087,0.09037671,92065.0,92056.0,0.0468]
[1740459764297,0.09737671,92065.0,92056.0,0.0468]
[1740459766437,0.27948326,92065.0,92056.0,0.0468]
[1740459766959,0.15,92064.0,92056.0,0.0468]
[1740459767112,0.04046257,92063.0,92056.0,0.0468]
[1740459767887,0.04046257,92063.0,92040.0,0.0797]
[1740459768098,0.05148973,92063.0,92044.0,0.047]
[1740459768352,0.04746257,92063.0,92044.0,0.047]
[1740459768829,0.2168397,92062.0,92044.0,0.047]
[1740459769012,0.03211969,92061.0,92044.0,0.047]
[1740459769209,0.03129737,92060.0,92044.0,0.047]
[1740459769395,0.03614843,92059.0,92044.0,0.047]
[1740459769596,0.03211969,92058.0,92044.0,0.047]
[1740459769995,0.03472001,92058.0,92044.0,0.047]
[1740459770305,0.0668397,92058.0,92044.0,0.047]
[1740459770539,0.25533146,92058.0,92044.0,0.047]
[1740459771038,0.26233146,92058.0,92044.0,0.047]
[1740459771478,0.26933146,92058.0,92044.0,0.047]
[1740459772255,0.2308397,92058.0,92044.0,0.047]
[1740459772516,0.164,92058.0,92044.0,0.047]
[1740459772637,0.02,92067.0,92044.0,0.047]
[1740459772838,0.3265,92064.0,92057.0,0.00097937]
[1740459773255,0.38102749,92064.0,92057.0,0.00097937]
[1740459773408,0.007,92058.0,92057.0,0.00097937]
[1740459774132,0.38102749,92064.0,92058.0,0.0799]
[1740459774308,0.39502749,92064.0,92058.0,0.0799]
[1740459774720,0.15,92063.0,92058.0,0.0799]
[1740459774920,0.07568024,92062.0,92058.0,0.0799]
[1740459775463,0.15,92063.0,92058.0,0.0799]
[1740459775773,0.15,92063.0,92059.0,0.0484]
[1740459775975,0.15,92063.0,92059.0,0.0414]
[1740459776159,0.15,92063.0,92059.0,0.0364]
[1740459776586,0.005,92062.0,92059.0,0.0364]
[1740459776740,0.15,92063.0,92059.0,0.0364]
[1740459776943,0.22311255,92063.0,92059.0,0.0364]
[1740459777153,0.16,92063.0,92059.0,0.0374]
[1740459777558,0.155,92063.0,92059.0,0.0364]
[1740459777978,0.16,92063.0,92059.0,0.0374]
[1740459778238,0.16391356,92063.0,92059.0,0.0374]
[1740459778415,0.16,92063.0,92059.0,0.0374]
[1740459778617,0.07377803,92062.0,92059.0,0.0374]
[1740459779181,0.07377803,92062.0,92059.0,0.0364]
[1740459779381,0.07377803,92062.0,92059.0,0.0374]
[1740459779978,0.07377803,92062.0,92059.0,0.0364]
[1740459780179,0.08277803,92062.0,92059.0,0.0374]
[1740459780421,0.009,92062.0,92059.0,0.0374]
[1740459780824,0.009,92062.0,92060.0,0.0802]
[1740459781882,0.005,92062.0,92060.0,0.0802]
[1740459782058,0.00782712,92061.0,92060.0,0.0802]
[1740459782259,0.00782712,92061.0,92057.0,0.00097937]
[1740459782467,0.0752394,92061.0,92057.0,0.00097937]
[1740459782685,0.03223249,92060.0,92057.0,0.00097937]
[1740459782886,0.05912538,92060.0,92057.0,0.00097937]
[1740459783095,0.18223249,92059.0,92057.0,0.00097937]
[1740459783345,0.03223249,92058.0,92057.0,0.00097937]
[1740459783550,0.2675491,92058.0,92057.0,0.00097937]
[1740459784305,0.2988354,92058.0,92038.0,0.0478]
[1740459784516,0.50873249,92057.0,92038.0,0.0478]
[1740459784701,0.03223249,92056.0,92038.0,0.0478]
[1740459784895,0.05912538,92056.0,92038.0,0.0478]
[1740459785120,0.24933088,92055.0,92038.0,0.0478]
[1740459785300,0.03223249,92054.0,92038.0,0.0478]
[1740459785622,0.03223249,92054.0,92039.0,0.081]
[1740459786283,0.03223249,92055.0,92039.0,0.081]
[1740459786412,0.03723249,92054.0,92039.0,0.081]
[1740459786755,0.03223249,92053.0,92039.0,0.081]
[1740459787187,0.03223249,92055.0,92039.0,0.081]
[1740459787357,0.03235774,92054.0,92039.0,0.081]
[1740459787563,0.03235774,92053.0,92039.0,0.081]
[1740459787716,0.03235774,92052.0,92039.0,0.081]
[1740459787917,0.03235774,92051.0,92041.0,0.0787]
[1740459788142,0.03235774,92050.0,92041.0,0.0787]
[1740459788351,0.008,92054.0,92041.0,0.0787]
[1740459788582,0.03215026,92053.0,92044.0,0.0497]
[1740459788792,0.03515026,92053.0,92045.0,0.0775]
[1740459789133,0.03515026,92053.0,92047.0,0.0775]
[1740459789134,0.03215026,92052.0,92047.0,0.0775]
[1740459789958,0.005,92053.0,92049.0,0.0781]
[1740459790247,0.001,92053.0,92050.0,0.0475]
[1740459790489,0.001,92053.0,92052.0,0.0475]
[1740459790733,0.001,92053.0,92052.0,0.1256]
[1740459791217,0.002,92053.0,92052.0,0.1256]
[1740459791691,0.001,92053.0,92052.0,0.1256]
[1740459792274,0.00012915,92058.0,92052.0,0.1256]
[1740459792429,0.00012915,92058.0,92053.0,0.0772]
[1740459792768,0.00012915,92058.0,92053.0,0.0752]
[1740459793209,0.00012915,92058.0,92054.0,0.04652071]
[1740459793442,0.00212915,92058.0,92054.0,0.04652071]
[1740459793638,0.00412915,92058.0,92055.0,0.01454085]
[1740459793768,0.00212915,92058.0,92056.0,0.0482]
[1740459793976,0.00212915,92058.0,92057.0,0.04972053]
[1740459794157,0.00412915,92058.0,92057.0,0.06916699]
[1740459794361,0.0016992,92062.0,92058.0,0.06274085]
[1740459794565,0.12316557,92117.0,92061.0,0.01454085]
[1740459794566,0.19790441,92116.0,92061.0,0.01454085]
[1740459794805,0.19790441,92116.0,92057.0,0.00642614]
[1740459794806,0.18539992,92115.0,92063.0,0.01454085]
[1740459795008,0.03211893,92114.0,92067.0,0.0482]
[1740459795210,0.04682871,92113.0,92069.0,0.0459]
[1740459795458,0.03211893,92112.0,92070.0,0.00152031]
[1740459795666,0.03211893,92112.0,92071.0,0.0825]
[1740459795843,0.03211893,92112.0,92073.0,0.0825]
[1740459796077,0.03211893,92112.0,92075.0,0.0825]
[1740459796340,0.05461106,92111.0,92077.0,0.0825]
[1740459796518,0.03211893,92112.0,92079.0,0.0772]
[1740459796813,0.03211893,92112.0,92069.0,0.3234]
[1740459796814,0.03211893,92111.0,92080.0,0.0772]
[1740459797114,0.19790441,92116.0,92080.0,0.0772]
[1740459797115,0.03211893,92110.0,92083.0,0.01454085]
[1740459797337,0.03059255,92111.0,92085.0,0.0808]
[1740459797538,0.03211893,92110.0,92087.0,0.0808]
[1740459797681,0.00825492,92109.0,92087.0,0.0808]
[1740459797880,0.03211893,92108.0,92087.0,0.0808]
[1740459798308,0.00825492,92109.0,92089.0,0.0817]
[1740459798519,0.014,92112.0,92090.0,0.00152002]
[1740459798739,0.004,92110.0,92091.0,0.0817]
[1740459798906,0.03205003,92109.0,92091.0,0.0817]
[1740459799102,0.03059255,92109.0,92091.0,0.0817]
[1740459799300,0.003,92108.0,92091.0,0.0817]
[1740459799500,0.005,92111.0,92091.0,0.0817]
[1740459799737,0.03203066,92110.0,92091.0,0.0817]
[1740459799933,0.00012954,92111.0,92091.0,0.0817]
[1740459800138,0.00012954,92111.0,92091.0,0.09443]
[1740459800705,0.005,92109.0,92091.0,0.09443]
[1740459800917,0.005,92109.0,92093.0,0.0491]
[1740459801104,0.005,92109.0,92094.0,0.07821997]
[1740459801310,0.005,92109.0,92094.0,0.0767]
[1740459801553,0.003,92108.0,92094.0,0.0767]
[1740459802102,0.003,92108.0,92094.0,0.07821991]
[1740459802329,0.00012954,92111.0,92094.0,0.0767]
[1740459802502,0.003,92109.0,92095.0,0.0784]
[1740459802707,0.003,92109.0,92097.0,0.0784]
[1740459802943,0.00012954,92111.0,92099.0,0.082]
[1740459803143,0.00012954,92111.0,92100.0,0.00151991]
[1740459803750,0.00012954,92111.0,92099.0,0.082]
[1740459804090,0.004,92108.0,92099.0,0.082]
[1740459804213,0.007,92108.0,92099.0,0.082]
[1740459804576,0.004,92108.0,92099.0,0.082]
[1740459804935,0.004,92108.0,92101.0,0.0753]
[1740459805135,0.00012954,92111.0,92101.0,0.0753]
[1740459805548,0.003,92108.0,92101.0,0.0753]
[1740459805741,0.00512954,92111.0,92101.0,0.0753]
[1740459805956,0.03547331,92110.0,92101.0,0.0753]
[1740459806506,0.003,92108.0,92101.0,0.0753]
[1740459808856,0.00012954,92111.0,92101.0,0.0753]
[1740459808975,0.003,92108.0,92101.0,0.0753]
[1740459809584,0.00012954,92111.0,92101.0,0.0753]
[1740459809791,0.002,92108.0,92101.0,0.0753]
[1740459811581,0.005,92108.0,92101.0,0.0753]
[1740459811765,0.01703344,92107.0,92101.0,0.0753]
[1740459812915,0.02203344,92107.0,92101.0,0.0753]
[1740459814546,0.02203344,92107.0,92101.0,0.2753]
[1740459816355,0.06296676,92106.0,92101.0,0.2]
[1740459816734,0.04044515,92105.0,92101.0,0.2]
[1740459816936,0.03103458,92106.0,92101.0,0.2]
[1740459817142,0.02203344,92107.0,92101.0,0.2]
[1740459817362,0.01903344,92107.0,92102.0,0.0783]
[1740459817542,0.003,92106.0,92102.0,0.0783]
[1740459817892,0.003,92106.0,92103.0,0.0455]
[1740459818128,0.00012954,92111.0,92103.0,0.0455]
[1740459818323,0.003,92107.0,92103.0,0.0455]
[1740459818524,0.002,92106.0,92103.0,0.0455]
[1740459818776,0.00012954,92111.0,92103.0,0.0455]
[1740459819129,0.005,92106.0,92103.0,0.0455]
[1740459819983,0.005,92106.0,92104.0,0.03238]
[1740459820184,0.005,92106.0,92105.0,0.0767]
[1740459820413,0.002,92106.0,92105.0,0.07821981]
[1740459821288,0.00012954,92111.0,92106.0,0.0462]
[1740459821633,0.00012954,92111.0,92107.0,0.0787]
[1740459822248,0.00012954,92111.0,92107.0,0.0767]
[1740459822869,0.00312954,92111.0,92107.0,0.0767]
[1740459823151,0.00312954,92111.0,92107.0,0.07821975]
[1740459823513,0.00712954,92111.0,92107.0,0.07821975]
[1740459823875,0.00312954,92111.0,92107.0,0.0348457]
[1740459824415,0.00312954,92111.0,92107.0,0.03332595]
[1740459824613,0.00312954,92111.0,92106.0,0.04623938]
[1740459824834,0.00412954,92111.0,92108.0,0.00151964]
[1740459825242,0.01703158,92110.0,92109.0,0.0803]
[1740459826333,0.01803158,92110.0,92109.0,0.4027]
[1740459827627,0.01803158,92110.0,92109.0,0.4489]
[1740459827788,0.01903158,92110.0,92109.0,0.4489]
[1740459828134,0.002,92110.0,92109.0,0.4489]
[1740459828430,0.001,92110.0,92109.0,0.4489]
[1740459828630,0.00012954,92111.0,92109.0,0.4489]
[1740459828929,0.00012954,92111.0,92110.0,0.00151959]
[1740459829153,0.00012954,92111.0,92109.0,0.4499]
[1740459829372,0.00012954,92111.0,92110.0,0.08321959]
[1740459829906,0.15,92149.0,92110.0,0.08321959]
[1740459830111,0.03209989,92148.0,92112.0,0.0808]
[1740459830427,0.03209989,92148.0,92113.0,0.00151959]
[1740459831243,0.03209989,92148.0,92114.0,0.00151959]
[1740459831436,0.03209989,92147.0,92116.0,0.0484]
[1740459831644,0.03209989,92146.0,92117.0,0.00151959]
[1740459831878,0.007,92148.0,92117.0,0.00151959]
[1740459832057,0.03209989,92147.0,92117.0,0.00151959]
[1740459832908,0.005,92146.0,92117.0,0.00251959]
[1740459833107,0.03209989,92147.0,92118.0,0.04113315]
[1740459833387,0.03209989,92146.0,92119.0,0.08291959]
[1740459833528,0.03209989,92146.0,92119.0,0.0814]
[1740459834545,0.01702937,92140.0,92119.0,0.0814]
[1740459834819,0.03209989,92139.0,92119.0,0.0814]
[1740459835030,0.03209989,92139.0,92119.0,0.0824]
[1740459835224,0.03209989,92139.0,92120.0,0.00151959]
[1740459835791,0.03209989,92139.0,92120.0,0.08181957]
[1740459836161,0.03709989,92139.0,92120.0,0.08181957]
[1740459836449,0.03209989,92138.0,92120.0,0.08181957]
[1740459836593,0.03209989,92139.0,92120.0,0.08181957]
[1740459836811,0.03709989,92139.0,92121.0,0.0464]
[1740459836988,0.03209989,92138.0,92122.0,0.08391956]
[1740459839163,0.03709989,92138.0,92122.0,0.08491956]
[1740459839362,0.03209989,92137.0,92122.0,0.08491956]
[1740459839968,0.03209989,92137.0,92122.0,0.08591956]
[1740459840176,0.03209989,92137.0,92122.0,0.08491956]
[1740459841044,0.03909989,92137.0,92122.0,0.08591956]
[1740459841484,0.03209989,92136.0,92122.0,0.08491956]
[1740459841681,0.03209989,92136.0,92122.0,0.0844]
[1740459842465,0.03821282,92136.0,92122.0,0.0824]
[1740459842683,0.03821282,92136.0,92122.0,0.0834]
[1740459842684,0.06393245,92135.0,92122.0,0.0834]
[1740459842828,0.03209989,92134.0,92122.0,0.0844]
[1740459843062,0.03183256,92133.0,92122.0,0.0844]
[1740459843269,0.03209989,92132.0,92122.0,0.0834]
[1740459843491,0.03209989,92132.0,92122.0,0.0844]
[1740459843686,0.03209989,92135.0,92122.0,0.09748]
[1740459843896,0.01702972,92130.0,92122.0,0.0844]
[1740459844116,0.03209989,92129.0,92122.0,0.0834]
[1740459844319,0.03209989,92129.0,92122.0,0.0844]
[1740459844518,0.03209989,92129.0,92122.0,0.0834]
[1740459844690,0.03209989,92129.0,92123.0,0.00151954]
[1740459844930,0.03209989,92129.0,92125.0,0.0486]
[1740459845303,0.007,92133.0,92127.0,0.0486]
[1740459845474,0.007,92133.0,92128.0,0.08261931]
[1740459845714,0.0321,92154.0,92128.0,0.08261931]
[1740459845715,0.005,92129.0,92128.0,0.08261931]
[1740459846090,0.01,92129.0,92128.0,0.40501931]
[1740459846296,0.01,92129.0,92128.0,0.4035]
[1740459846473,0.007,92152.0,92129.0,0.083]
[1740459846678,0.03209816,92146.0,92130.0,0.0793193]
[1740459846844,0.03209816,92146.0,92131.0,0.01195745]
[1740459847048,0.03209816,92146.0,92133.0,0.0778]
[1740459847270,0.03209816,92146.0,92134.0,0.0015193]
[1740459847505,0.03209816,92146.0,92133.0,0.0778]
[1740459848205,0.01702731,92143.0,92133.0,0.0778]
[1740459848430,0.03209816,92142.0,92133.0,0.0778]
[1740459848639,0.03209816,92142.0,92134.0,0.00151931]
[1740459849875,0.03209816,92142.0,92137.0,0.0488]
[1740459850081,0.002,92142.0,92140.0,0.01454085]
[1740459850269,0.002,92142.0,92141.0,0.46125977]
[1740459850502,0.002,92142.0,92141.0,0.50690683]
[1740459850656,0.001,92143.0,92142.0,0.01454085]
[1740459851003,0.0016996,92176.0,92144.0,0.01454085]
[1740459851226,0.0016996,92176.0,92143.0,0.1304]
[1740459851227,0.0016996,92176.0,92146.0,0.01354085]
[1740459851422,0.0016996,92176.0,92146.0,0.13574085]
[1740459851823,0.0016996,92176.0,92146.0,0.15585558]
[1740459852030,0.0016996,92176.0,92146.0,0.13474085]
[1740459852328,0.0016996,92176.0,92146.0,0.1342597]
[1740459852529,0.0016996,92176.0,92146.0,0.1382597]
[1740459853029,0.0016996,92176.0,92146.0,0.1422597]
[1740459854093,0.01872074,92147.0,92146.0,0.1422597]
[1740459854295,0.01872074,92147.0,92146.0,0.18720682]
[1740459854500,0.01872074,92147.0,92146.0,0.18872578]
[1740459854699,0.0016996,92176.0,92146.0,0.18872578]
[1740459854700,0.0016996,92176.0,92146.0,0.92642578]
[1740459854899,0.0016996,92176.0,92151.0,0.1271]
[1740459855101,0.0016996,92176.0,92154.0,0.06074085]
[1740459855302,0.0016996,92176.0,92154.0,0.16092947]
[1740459855508,0.0016996,92176.0,92154.0,0.16989088]
[1740459855931,0.0016996,92176.0,92154.0,0.17140949]
[1740459856512,0.0016996,92176.0,92154.0,0.17840949]
[1740459857291,0.0016996,92176.0,92154.0,0.16063946]
[1740459857610,0.0016996,92176.0,92154.0,0.16763946]
[1740459858221,0.0016996,92176.0,92154.0,0.16612085]
[1740459858428,0.0016996,92176.0,92154.0,0.1411]
[1740459859035,0.03447983,92169.0,92154.0,0.014]
[1740459859332,0.004356,92167.0,92154.0,0.014]
[1740459859850,0.03883583,92167.0,92154.0,0.007]
[1740459860668,0.03883583,92167.0,92147.0,0.3224]
[1740459861044,0.03883583,92167.0,92154.0,0.003]
[1740459861244,0.004356,92167.0,92147.0,0.3224]
[1740459861589,0.004356,92167.0,92148.0,0.0337591]
[1740459861731,0.004356,92167.0,92154.0,0.007]
[1740459862264,0.004356,92167.0,92148.0,0.0015191]
[1740459862625,0.004356,92167.0,92150.0,0.0008487]
[1740459863632,0.01702391,92154.0,92150.0,0.0008487]
[1740459863893,0.01702391,92154.0,92152.0,0.1247]
[1740459864896,0.01702391,92154.0,92152.0,0.12621899]
[1740459865092,0.01702391,92154.0,92152.0,0.1257]
[1740459865550,0.01702391,92154.0,92152.0,0.1267]
[1740459865698,0.01702391,92154.0,92152.0,0.1257]
[1740459865907,0.01702391,92154.0,92152.0,0.128219]
[1740459867345,0.01702391,92154.0,92152.0,0.1267]
[1740459867662,0.01702391,92154.0,92152.0,0.002]
[1740459868231,0.01702391,92154.0,92152.0,0.001]
[1740459868361,0.04040422,92153.0,92150.0,0.0008487]
[1740459868565,0.04040422,92153.0,92152.0,0.002]
[1740459868785,0.2840991,92153.0,92152.0,0.001]
[1740459869000,0.27964607,92153.0,92152.0,0.001]
[1740459869224,0.15,92152.0,92150.0,0.0008487]
[1740459869417,0.26859163,92151.0,92150.0,0.0008487]
[1740459869617,0.30331164,92151.0,92150.0,0.0008487]
[1740459870025,0.26859163,92151.0,92150.0,0.0008487]
[1740459870619,0.18202606,92151.0,92150.0,0.0008487]
[1740459872380,0.20173849,92151.0,92150.0,0.0008487]
[1740459873524,0.20005189,92151.0,92150.0,0.0008487]
[1740459874495,0.19905189,92151.0,92150.0,0.0008487]
[1740459874711,0.20005189,92151.0,92150.0,0.0008487]
[1740459875694,0.19905189,92151.0,92150.0,0.0008487]
[1740459875868,0.20005189,92151.0,92150.0,0.0008487]
[1740459876068,0.16802583,92151.0,92150.0,0.0008487]
[1740459877289,0.20013369,92151.0,92150.0,0.0008487]
[1740459877520,0.19913369,92151.0,92150.0,0.0008487]
[1740459877794,0.19913369,92151.0,92150.0,0.0018487]
[1740459878610,0.19913369,92151.0,92150.0,0.0028487]
[1740459880022,0.19913369,92151.0,92150.0,0.2028487]
[1740459880343,0.20720797,92151.0,92150.0,0.2028487]
[1740459880749,0.22843859,92151.0,92150.0,0.03878932]
[1740459880949,0.15,92150.0,92130.0,0.06979831]
[1740459881149,0.03210786,92149.0,92137.0,0.00012946]
[1740459882336,0.03210786,92150.0,92137.0,0.00012946]
[1740459882538,0.05883537,92149.0,92137.0,0.00012946]
[1740459882756,0.03210786,92148.0,92137.0,0.00012946]
[1740459883006,0.03487122,92150.0,92137.0,0.00012946]
[1740459883218,0.03210786,92147.0,92137.0,0.00012946]
[1740459883337,0.03210786,92146.0,92137.0,0.00012946]
[1740459883538,0.03210786,92150.0,92137.0,0.00012946]
[1740459883734,0.00932812,92149.0,92137.0,0.00012946]
[1740459883938,0.03210786,92148.0,92137.0,0.00012946]
[1740459884366,0.03210786,92148.0,92127.0,0.3224]
[1740459884590,0.03472001,92147.0,92127.0,0.3224]
[1740459884790,0.03210786,92146.0,92127.0,0.3224]
[1740459884997,0.02523855,92145.0,92126.0,0.0481]
[1740459885201,0.03210786,92144.0,92126.0,0.0481]
[1740459885398,0.03210786,92147.0,92126.0,0.0481]
[1740459885626,0.00806324,92127.0,92118.0,0.31449946]
[1740459885828,0.00806324,92127.0,92114.0,0.0482]
[1740459886401,0.00806324,92127.0,92118.0,0.0008487]
[1740459886841,0.00806324,92127.0,92126.0,0.001]
[1740459887872,0.00906324,92127.0,92126.0,0.001]
[1740459888105,0.00906324,92127.0,92118.0,0.0078487]
[1740459888756,0.00906324,92127.0,92118.0,0.0008487]
[1740459888937,0.00806324,92127.0,92126.0,0.007]
[1740459889137,0.00906324,92127.0,92126.0,0.014]
[1740459889339,0.00906324,92127.0,92126.0,0.007]
[1740459889558,0.02609135,92127.0,92126.0,0.007]
[1740459889753,0.03217249,92127.0,92126.0,0.007]
[1740459890093,0.02609135,92127.0,92126.0,0.007]
[1740459890508,0.00906324,92127.0,92126.0,0.007]
[1740459890716,0.00806324,92127.0,92118.0,0.0008487]
[1740459890932,0.03210366,92126.0,92118.0,0.0078487]
[1740459891312,0.03210366,92126.0,92118.0,0.0008487]
[1740459891921,0.03210366,92126.0,92118.0,0.0078487]
[1740459892327,0.03210366,92126.0,92118.0,0.00936834]
[1740459892629,0.001,92126.0,92118.0,0.00936834]
[1740459893062,0.001,92126.0,92118.0,0.01636834]
[1740459893848,0.00806324,92127.0,92118.0,0.00936834]
[1740459894046,0.03313863,92126.0,92118.0,0.01636834]
[1740459894221,0.03213863,92125.0,92118.0,0.01636834]
[1740459894429,0.001,92126.0,92118.0,0.00936834]
[1740459894653,0.03213525,92125.0,92118.0,0.01636834]
[1740459894851,0.04916335,92125.0,92118.0,0.00936834]
[1740459895046,0.0170281,92125.0,92118.0,0.01636834]
[1740459895546,0.032135,92124.0,92118.0,0.00936834]
[1740459895845,0.032135,92124.0,92118.0,0.0078487]
[1740459896160,0.15,92148.0,92118.0,0.0008487]
[1740459896336,0.15,92148.0,92119.0,0.00151962]
[1740459896564,0.03186913,92147.0,92119.0,0.00151962]
[1740459897195,0.001,92125.0,92119.0,0.00151962]
[1740459897514,0.032678,92149.0,92119.0,0.00151962]
[1740459897718,0.06309335,92148.0,92119.0,0.00164901]
[1740459897921,0.00803516,92120.0,92119.0,0.00164901]
[1740459898249,0.00803516,92120.0,92119.0,0.00012939]
[1740459898441,0.00803516,92120.0,92119.0,0.08002939]
[1740459898947,0.00803516,92120.0,92119.0,0.08702939]
[1740459899326,0.00803516,92120.0,92119.0,0.09402939]
[1740459899529,0.02506298,92120.0,92119.0,0.08702939]
[1740459900627,0.00803516,92120.0,92119.0,0.08702939]
[1740459900791,0.00803516,92120.0,92119.0,0.08002939]
[1740459901386,0.00903516,92120.0,92119.0,0.08702939]
[1740459901517,0.00903516,92120.0,92119.0,0.09402939]
[1740459901723,0.00903516,92120.0,92119.0,0.08702939]
[1740459902108,0.00903516,92120.0,92119.0,0.09402939]
[1740459902729,0.00903516,92120.0,92109.0,0.27824846]
[1740459902847,0.00903516,92120.0,92109.0,0.2579786]
[1740459903052,0.21662934,92119.0,92105.0,0.0476]
[1740459903246,0.20726562,92118.0,92096.0,0.3071786]
[1740459903503,0.03190933,92117.0,92096.0,0.3071786]
[1740459903706,0.21615542,92117.0,92096.0,0.302084]
[1740459903955,0.03190933,92116.0,92096.0,0.04932954]
[1740459904152,0.03190933,92116.0,92096.0,0.00012954]
[1740459904359,0.21996234,92115.0,92095.0,0.02966158]
[1740459904530,0.23000933,92114.0,92095.0,0.02966158]
[1740459904732,0.03190933,92113.0,92095.0,0.02966158]
[1740459904940,0.08656557,92102.0,92070.0,0.252884]
[1740459905080,0.08656557,92102.0,92064.0,0.0008495]
[1740459905081,0.08656557,92091.0,92064.0,0.0008495]
[1740459905279,0.19138543,92090.0,92057.0,0.2008487]
[1740459905523,0.00821338,92071.0,92057.0,0.2008487]
[1740459905719,0.00821338,92071.0,92057.0,0.13200967]
[1740459905720,0.03190933,92070.0,92057.0,0.13200967]
[1740459905922,0.06615542,92070.0,92057.0,0.11999967]
[1740459906096,0.03190933,92069.0,92057.0,0.11999967]
[1740459906299,0.01703977,92067.0,92057.0,0.11999967]
[1740459907601,0.01703977,92067.0,92058.0,0.00152062]
[1740459907801,0.01703977,92067.0,92059.0,0.002]
[1740459908393,0.01803977,92067.0,92060.0,0.00152041]
[1740459908594,0.01903977,92067.0,92061.0,0.00152025]
[1740459908795,0.01703977,92067.0,92062.0,0.01454085]
[1740459908993,0.01803977,92067.0,92063.0,0.00152028]
[1740459909219,0.01903977,92067.0,92063.0,0.00152028]
[1740459909401,0.01803977,92067.0,92063.0,0.00152028]
[1740459909577,0.01803977,92067.0,92063.0,0.00152029]
[1740459909851,0.01903977,92067.0,92063.0,0.00152029]
[1740459910067,0.01903977,92067.0,92060.0,0.001]